bitfinex-derivatives/quotes_ETHF0:USTF0_20251024
["timestamp","ask_amount","ask_price","bid_price","bid_amount"]
[1761313473876,0.00273013,3940.1,3939.4,1.4975]
[1761313475273,0.00273013,3940.1,3939.6,2.1205]
[1761313475477,0.00273013,3940.1,3939.8,1.4975]
[1761313475672,0.00273013,3940.1,3939.8,1.50004969]
[1761313475876,3.2078,3941.0,3940.1,1.4975]
[1761313476079,3.2078,3941.0,3940.2,1.4975]
[1761313476277,3.2078,3941.4,3940.2,1.4975]
[1761313476576,3.2078,3941.4,3940.6,1.4975]
[1761313476877,3.21065896,3941.4,3940.6,1.4975]
[1761313477370,0.4567,3940.9,3940.0,3.2078]
[1761313477570,3.66449,3941.0,3940.1,1.4975]
[1761313477773,0.45666,3941.3,3940.1,1.95428]
[1761313477970,0.45652,3942.4,3941.3,1.4975]
[1761313478171,3.2078,3942.5,3941.8,1.4975]
[1761313478370,0.45649,3942.7,3940.8,0.623]
[1761313478371,3.2078,3942.1,3940.9,1.4975]
[1761313478581,0.45658,3941.9,3940.9,1.4975]
[1761313478880,0.4566,3941.7,3940.9,1.4975]
[1761313479379,0.00233681,3941.9,3941.3,1.4975]
[1761313479576,0.45891681,3941.9,3941.3,1.4975]
[1761313480171,0.00233681,3941.9,3941.3,1.4975]
[1761313480371,0.45659,3941.8,3941.3,1.4975]
[1761313480780,0.00233681,3941.9,3941.5,1.4975]
[1761313480973,0.00233681,3941.9,3940.3,1.1419]
[1761313480974,0.45681,3939.9,3938.9,1.4975]
[1761313481279,0.45681,3939.9,3939.8,1.50004969]
[1761313481280,3.2078,3939.9,3939.8,1.50004969]
[1761313481982,3.2078,3940.4,3939.9,1.4975]
[1761313482181,3.2078,3940.8,3940.0,1.4975]
[1761313482381,0.45667,3941.1,3940.5,1.4975]
[1761313482681,0.45673,3940.6,3940.5,1.4975]
[1761313482879,0.65505348,3940.7,3939.8,1.50004969]
[1761313483080,3.2078,3939.9,3939.8,1.50004969]
[1761313483383,3.86285348,3939.9,3939.8,1.50004969]
[1761313483576,3.2078,3939.9,3939.8,1.50004969]
[1761313483782,0.45678,3940.2,3939.8,1.50004969]
[1761313483981,0.45678,3940.3,3939.8,1.50004969]
[1761313484176,0.65308163,3940.2,3939.8,1.50004969]
[1761313484376,0.65308163,3940.1,3940.0,1.4975]
[1761313484684,0.89737202,3940.6,3939.8,0.00254969]
[1761313484685,0.65416321,3940.4,3940.3,1.4975]
[1761313484878,0.45675,3940.5,3940.3,1.4975]
[1761313485072,0.65416951,3940.4,3940.3,1.4975]
[1761313485575,0.65416951,3940.4,3940.3,6.4975]
[1761313485974,1.34519078,3941.3,3940.7,0.45672]
[1761313485975,4.10517202,3941.2,3940.7,0.45672]
[1761313486185,4.10517202,3941.2,3940.3,5.0]
[1761313486186,0.6547893,3941.1,3940.9,1.4975]
[1761313486377,0.6547893,3941.0,3940.9,1.9542]
[1761313486578,0.6547893,3941.0,3940.9,1.4975]
[1761313486882,0.6547893,3941.1,3940.9,5.45669]
[1761313487079,0.6547893,3941.0,3940.9,5.45669]
[1761313487282,0.6547893,3941.0,3940.9,0.45669]
[1761313487476,1.1114293,3941.4,3940.9,0.45669]
[1761313487678,4.7512,3941.0,3938.9,3.2078]
[1761313487890,3.2078,3940.3,3939.8,1.50004969]
[1761313488184,0.45681,3940.0,3939.8,1.50004969]
[1761313488400,3.9418998,3939.9,3939.8,1.50004969]
[1761313488682,3.9418998,3939.9,3939.8,0.00254969]
[1761313488887,10.4852998,3939.9,3938.3,3.2078]
[1761313489090,3.2078,3938.7,3937.8,0.02539489]
[1761313489284,0.73516014,3938.6,3938.1,1.95451]
[1761313489485,0.73516014,3938.5,3938.4,0.623]
[1761313489885,0.73817522,3938.5,3938.4,2.1205]
[1761313490082,0.73817522,3938.5,3938.4,2.12257129]
[1761313490283,0.73817522,3938.5,3938.4,1.49957129]
[1761313490779,3.2078,3939.1,3938.4,5.62507129]
[1761313490993,0.65577898,3939.0,3938.6,1.4975]
[1761313491290,0.45694,3938.9,3938.6,1.4975]
[1761313491483,3.2078,3939.1,3938.6,0.45696]
[1761313491685,3.2078,3939.1,3938.4,0.62507129]
[1761313491686,1.47710562,3940.3,3939.0,3.2078]
[1761313491883,0.00271346,3940.3,3939.8,3.2078]
[1761313492288,0.00271346,3940.3,3940.2,3.66458]
[1761313492592,0.00271346,3940.3,3940.1,0.45678]
[1761313492788,1.95241346,3940.3,3939.9,0.45681]
[1761313492996,1.95241346,3940.3,3940.1,0.45678]
[1761313493290,4.09274446,3940.2,3939.1,3.2078]
[1761313493489,1.9497,3939.3,3938.7,3.2078]
[1761313493689,1.9497,3940.1,3938.7,3.2078]
[1761313493892,1.9497,3939.0,3938.4,0.00207129]
[1761313494091,1.9497,3938.8,3938.4,0.45905129]
[1761313494287,1.9497,3938.8,3938.6,3.66476]
[1761313494690,1.9497,3939.5,3938.6,3.66476]
[1761313494895,1.9497,3939.2,3938.6,3.2078]
[1761313495085,0.45692,3939.0,3938.6,3.2078]
[1761313495289,1.9497,3938.9,3938.4,0.00207129]
[1761313495498,1.9497,3938.7,3938.4,0.00207129]
[1761313495896,1.9497,3938.5,3938.4,0.00207129]
[1761313496492,3.2078,3939.3,3938.5,0.45697]
[1761313496493,2.265,3938.9,3938.5,0.45697]
[1761313496696,2.265,3938.9,3938.7,0.45695]
[1761313497196,2.265,3938.7,3937.8,0.02539489]
[1761313497493,2.265,3937.8,3937.0,0.45714]
[1761313497687,2.265,3937.8,3937.1,0.45713]
[1761313497891,3.2078,3937.9,3937.2,0.45712]
[1761313498092,0.45706,3937.8,3937.1,0.45713]
[1761313498395,3.2078,3937.9,3937.8,0.45706]
[1761313498989,3.2078,3937.9,3937.3,0.4571]
[1761313499190,3.2078,3937.9,3937.4,0.45709]
[1761313499390,3.2078,3937.9,3937.3,0.45711]
[1761313499588,2.265,3937.8,3937.1,0.00264403]
[1761313499796,5.4728,3938.0,3937.2,3.2078]
[1761313500101,0.45706,3937.8,3937.1,0.45977403]
[1761313500297,2.265,3938.8,3937.7,3.2078]
[1761313500593,2.265,3938.8,3937.7,0.7886]
[1761313500899,2.265,3938.8,3937.1,1.14548403]
[1761313500900,3.66463,3939.8,3938.6,0.7886]
[1761313501102,0.00271346,3940.3,3939.5,0.7886]
[1761313501396,0.00271346,3940.3,3940.2,0.7886]
[1761313501594,2.26771346,3940.3,3938.9,0.7886]
[1761313501792,2.265,3939.8,3938.9,0.7886]
[1761313501992,3.2078,3939.5,3938.4,3.2078]
[1761313502193,0.45694,3938.9,3937.9,3.2078]
[1761313502396,0.45699,3938.4,3937.3,3.2078]
[1761313502699,2.265,3938.2,3937.3,0.00300654]
[1761313502895,2.265,3937.4,3937.3,0.00300654]
[1761313503096,3.1566,3937.2,3935.9,0.7886]
[1761313503295,0.68568365,3937.1,3936.9,0.45715]
[1761313503496,0.68568365,3937.0,3936.8,0.45716]
[1761313503692,5.92985,3937.9,3936.2,3.2078]
[1761313503693,2.9506938,3936.9,3936.2,3.2078]
[1761313503905,0.45713,3937.2,3935.5,0.7886]
[1761313503906,2.265,3936.6,3935.5,0.7886]
[1761313504202,2.265,3936.6,3935.5,0.00307464]
[1761313504203,2.265,3935.8,3935.5,0.00307464]
[1761313504502,3.2078,3935.9,3934.0,3.9964]
[1761313504503,2.265,3935.6,3934.0,3.9964]
[1761313504691,3.89352526,3935.5,3934.6,3.2078]
[1761313504895,0.60631066,3935.4,3935.2,0.45735]
[1761313505089,0.67637622,3935.3,3935.2,4.45375]
[1761313505287,0.67637622,3935.3,3933.8,11.43806]
[1761313505288,2.265,3935.2,3933.8,3.2078]
[1761313505492,0.07941924,3935.3,3934.2,0.45747]
[1761313505493,2.265,3934.8,3934.2,0.45747]
[1761313505694,2.265,3934.8,3933.8,3.21051218]
[1761313505695,3.2078,3934.3,3934.1,0.45749]
[1761313505892,3.2078,3934.3,3932.9,11.44072]
[1761313505893,2.265,3934.4,3932.8,0.02542718]
[1761313506095,5.4728,3933.7,3933.1,0.45759]
[1761313506297,2.265,3932.4,3931.2,3.2078]
[1761313506490,0.8916,3932.5,3927.3,0.1917]
[1761313506491,3.2078,3931.5,3930.6,0.1917]
[1761313506694,3.2078,3931.1,3930.0,3.3995]
[1761313506894,3.2078,3930.7,3930.0,0.00258973]
[1761313507095,0.8916,3932.5,3930.6,11.44735]
[1761313507298,3.2078,3932.8,3931.4,3.2078]
[1761313507508,3.2078,3932.3,3931.4,0.4578]
[1761313507798,0.8916,3932.6,3931.9,0.45773]
[1761313507999,3.2078,3933.5,3932.5,0.45767]
[1761313508309,3.2078,3932.7,3931.4,0.2969]
[1761313508602,0.8916,3933.8,3932.8,0.45763]
[1761313508801,3.2078,3933.6,3932.6,3.66545]
[1761313508998,0.07947725,3933.5,3933.3,0.45757]
[1761313509200,0.00323133,3933.6,3933.3,0.75447]
[1761313509397,2.265,3934.6,3933.5,0.2969]
[1761313509595,0.8916,3935.1,3933.5,0.2969]
[1761313509596,3.1566,3935.1,3934.7,0.45742]
[1761313509803,3.1566,3935.1,3934.8,0.4574]
[1761313509804,0.8916,3935.1,3934.8,0.4574]
[1761313510099,3.2078,3935.6,3935.3,0.45734]
[1761313510296,3.2078,3936.6,3936.3,0.45722]
[1761313510499,2.99023151,3936.6,3936.3,0.45942189]
[1761313510693,2.99023151,3936.6,3936.5,0.75411]
[1761313510694,1e-08,3936.6,3936.5,0.75411]
[1761313511002,1e-08,3936.6,3936.5,0.45721]
[1761313511209,1e-08,3936.6,3936.5,5.75411]
[1761313511591,2.26500001,3936.6,3936.3,0.00220189]
[1761313511801,2.265,3936.3,3935.2,3.2078]
[1761313511991,1e-08,3936.6,3935.2,3.2078]
[1761313511992,2.265,3935.7,3935.2,3.2078]
[1761313512191,2.265,3935.7,3934.3,0.2969]
[1761313512192,5.4728,3935.7,3934.5,3.2078]
[1761313512405,3.2078,3935.7,3935.1,0.45737]
[1761313512702,2.265,3935.6,3935.0,0.45737]
[1761313512900,2.265,3935.6,3935.0,0.46061823]
[1761313513092,2.265,3935.0,3933.4,3.2078]
[1761313513291,2.265,3934.2,3933.5,0.45756]
[1761313513489,3.2078,3933.9,3933.0,3.2078]
[1761313513691,3.2078,3933.5,3932.6,3.2078]
[1761313513897,3.2078,3932.7,3932.0,0.2969]
[1761313514105,0.00290299,3932.7,3932.6,0.45765]
[1761313514295,0.00290299,3932.7,3932.6,0.75455]
[1761313514491,3.1566,3934.0,3932.6,0.75455]
[1761313514492,3.2078,3933.8,3933.7,0.45753]
[1761313514692,0.8916,3935.4,3933.4,3.5047]
[1761313514693,5.4728,3934.7,3933.4,3.5047]
[1761313514993,2.265,3934.6,3934.4,0.45745]
[1761313515205,4.0994,3935.4,3935.2,0.45736]
[1761313515404,4.0994,3935.4,3933.5,3.32839036]
[1761313515405,2.265,3934.9,3933.5,3.32839036]
[1761313515702,2.265,3934.9,3934.1,0.45748]
[1761313515703,2.265,3934.4,3934.1,0.45748]
[1761313515900,2.265,3934.4,3933.5,0.00212063]
[1761313515901,3.2078,3934.5,3933.5,0.00212063]
[1761313516099,2.265,3934.4,3933.5,0.00212063]
[1761313516299,2.265,3934.4,3934.2,0.45747]
[1761313516495,4.0994,3934.5,3934.4,0.45745]
[1761313516698,4.0994,3934.5,3933.9,0.45751]
[1761313516891,3.2078,3934.5,3934.4,0.45745]
[1761313517094,2.26743026,3934.9,3934.4,0.45744]
[1761313517496,2.26743026,3934.9,3934.1,3.2078]
[1761313517699,2.26743026,3934.9,3934.7,0.45741]
[1761313517899,2.26743026,3934.9,3934.7,0.75431]
[1761313517900,0.00243026,3934.9,3934.7,0.75431]
[1761313518099,0.00243026,3934.9,3934.8,5.0]
[1761313518904,0.00243026,3934.9,3933.6,3.2078]
[1761313518905,2.265,3934.8,3933.6,3.2078]
[1761313519100,2.265,3934.8,3932.5,11.44171]
[1761313519101,2.265,3934.8,3934.1,0.45748]
[1761313519303,0.00243026,3934.9,3934.2,5.0]
[1761313519510,0.00243026,3934.9,3934.7,0.45741]
[1761313519912,0.00243026,3934.9,3934.7,5.45741]
[1761313520100,3.026e-05,3934.9,3934.8,5.2969]
[1761313520411,3.026e-05,3934.9,3934.8,3.36863216]
[1761313520613,3.026e-05,3934.9,3933.2,3.5023]
[1761313520614,3.20783026,3934.9,3933.2,3.5023]
[1761313520904,5.4728,3934.3,3933.8,0.45751]
[1761313521104,2.265,3934.2,3933.7,0.45752]
[1761313521295,2.265,3934.2,3933.2,3.5023]
[1761313521502,2.265,3933.8,3933.5,0.45967063]
[1761313521700,3.026e-05,3934.9,3933.5,3.20992063]
[1761313521909,3.026e-05,3934.9,3934.8,0.4574]
[1761313522198,3.2078,3935.7,3935.5,0.45732]
[1761313522399,5.4241,3937.2,3935.7,0.3839]
[1761313522599,5.4241,3937.2,3935.6,1.14328]
[1761313522600,3.2078,3937.6,3936.2,1.14311]
[1761313522802,3.2078,3937.6,3936.6,1.14299]
[1761313523117,3.2078,3937.2,3936.3,3.36006482]
[1761313523412,3.20992835,3937.2,3936.3,0.00257225]
[1761313523596,3.66705835,3937.2,3936.4,0.45722]
[1761313523903,2.2163,3936.6,3936.3,0.00257225]
[1761313524212,2.2163,3936.4,3936.3,0.00257225]
[1761313524704,2.67356,3936.1,3935.4,3.2078]
[1761313525008,2.67356,3936.1,3935.1,0.45736]
[1761313525009,0.45729,3935.8,3935.1,0.45736]
[1761313525207,0.45731,3935.7,3934.9,3.66519]
[1761313525506,3.2078,3935.6,3934.5,3.5917]
[1761313525709,3.2078,3935.6,3934.5,3.59379581]
[1761313526008,3.66512,3935.6,3935.0,0.45737]
[1761313526209,3.66512,3935.6,3934.5,3.59379581]
[1761313526514,3.66512,3935.6,3934.9,0.45739]
[1761313526901,3.2078,3935.6,3935.0,0.45738]
[1761313527204,3.2078,3936.1,3935.1,3.2078]
[1761313527412,3.2078,3936.1,3935.8,0.45728]
[1761313527598,3.2078,3936.1,3935.6,0.45731]
[1761313527801,0.45729,3935.9,3935.1,3.2078]
[1761313528003,1.14301,3936.6,3935.1,3.2078]
[1761313528004,3.2078,3935.7,3935.1,0.45736]
[1761313528204,5.88141,3935.7,3935.1,0.45736]
[1761313528413,5.4241,3935.7,3935.3,0.45734]
[1761313528602,2.2163,3935.6,3935.3,0.45734]
[1761313528804,3.2078,3936.1,3935.4,0.45733]
[1761313528999,5.4241,3936.1,3935.7,0.45729]
[1761313529200,3.2078,3936.1,3935.2,1.5273]
[1761313529404,3.2078,3936.5,3936.2,0.45724]
[1761313529605,5.4241,3936.5,3936.3,0.45722]
[1761313529805,3.2078,3936.5,3936.4,0.3839]
[1761313530011,3.2078,3937.0,3936.9,0.45716]
[1761313530206,3.2078,3937.0,3936.8,0.45717]
[1761313530509,3.2078,3937.0,3935.9,1.14318]
[1761313530510,0.9259,3935.1,3933.9,1.79478803]
[1761313530710,0.9259,3935.1,3933.0,3.13851101]
[1761313530711,0.9259,3933.8,3933.0,3.13851101]
[1761313530913,3.2078,3933.5,3933.0,0.4576]
[1761313531215,1.14353,3934.8,3933.0,0.4576]
[1761313531216,2.2163,3934.6,3934.2,0.45747]
[1761313531405,2.2163,3934.6,3933.4,1.14392]
[1761313531406,2.2163,3934.2,3932.4,0.841]
[1761313531605,2.2163,3934.2,3932.8,0.45764]
[1761313531606,3.2078,3932.9,3932.8,0.45764]
[1761313531806,2.2163,3932.8,3932.5,18.29840649]
[1761313532208,2.2163,3933.5,3932.6,5.0]
[1761313532514,2.2163,3933.5,3932.5,18.29840649]
[1761313532515,3.2078,3933.7,3932.8,3.2078]
[1761313532715,3.2078,3933.7,3933.2,0.45758]
[1761313533017,2.2163,3933.6,3933.3,0.45757]
[1761313533312,2.2163,3933.4,3932.5,19.13940649]
[1761313533620,3.2078,3932.6,3932.5,18.75606649]
[1761313533913,3.2078,3932.6,3932.5,29.63106649]
[1761313534413,0.8627,3933.3,3932.6,0.3839]
[1761313534618,2.2163,3935.3,3933.6,1.14386]
[1761313534810,2.2163,3935.3,3932.6,5.3839]
[1761313534811,3.2078,3934.1,3933.0,3.2078]
[1761313535005,11.43378,3935.3,3932.5,0.00240649]
[1761313535006,2.2163,3933.9,3933.5,3.2078]
[1761313535209,2.2163,3933.6,3933.0,3.2078]
[1761313535617,0.9259,3934.0,3933.5,3.2078]
[1761313535618,2.2163,3933.9,3933.5,3.2078]
[1761313535805,2.21811405,3933.6,3933.4,3.2078]
[1761313536116,2.21811405,3933.6,3933.5,10.96]
[1761313536309,2.21811405,3933.6,3933.4,0.45756]
[1761313536509,2.21811405,3933.6,3933.0,3.66541]
[1761313537011,2.21811405,3933.6,3933.0,3.2078]
[1761313537312,2.21811405,3933.6,3933.1,10.948]
[1761313537515,2.21811405,3933.6,3933.0,3.2078]
[1761313538016,2.21811405,3933.6,3933.2,0.45758]
[1761313538213,2.21811405,3933.6,3933.4,3.66537]
[1761313538403,2.21811405,3933.6,3933.5,3.2078]
[1761313538609,2.21811405,3933.6,3933.4,0.45757]
[1761313539015,2.21811405,3933.6,3933.5,3.2078]
[1761313539716,0.00181405,3933.6,3933.5,8.2078]
[1761313540309,2.2163,3934.8,3934.7,0.45742]
[1761313540516,2.2163,3934.8,3934.7,10.903]
[1761313540710,2.2163,3934.8,3934.4,3.2078]
[1761313540919,2.2163,3934.8,3934.5,10.20844]
[1761313541110,2.2163,3934.8,3934.7,0.45742]
[1761313541317,2.21956355,3934.8,3934.6,0.45742]
[1761313541510,0.00326355,3934.8,3934.7,29.19]
[1761313541705,2.2163,3935.6,3935.4,0.45733]
[1761313541908,3.1422,3936.4,3935.5,10.889]
[1761313542116,0.9259,3936.4,3936.2,3.66503]
[1761313542316,0.9259,3936.4,3936.2,3.2078]
[1761313542519,2.2163,3936.8,3936.3,10.885]
[1761313542818,2.21872379,3936.8,3936.4,10.881]
[1761313543013,0.00242379,3936.8,3936.7,3.66498]
[1761313543220,2.2163,3937.4,3937.2,0.45711]
[1761313543420,3.1422,3937.7,3937.4,0.4571]
[1761313543618,2.2163,3937.6,3937.3,14.0798]
[1761313543819,2.2163,3937.6,3937.3,3.2078]
[1761313544114,2.2163,3937.6,3937.4,13.9528]
[1761313544319,2.21934828,3937.6,3937.5,11.20209]
[1761313544509,0.00304828,3937.6,3937.5,11.20209]
[1761313544711,0.00304828,3937.6,3937.5,16.20209]
[1761313545209,0.00304828,3937.6,3937.5,5.45709]
[1761313545409,0.00304828,3937.6,3937.5,34.60709]
[1761313545814,0.00304828,3937.6,3937.4,3.2078]
[1761313546012,0.00304828,3937.6,3937.5,29.141]
[1761313546418,0.00304828,3937.6,3937.5,5.0]
[1761313546717,2.21934828,3937.6,3937.5,15.838]
[1761313546919,2.21934828,3937.6,3936.3,3.20972862]
[1761313546920,2.2163,3936.8,3936.3,3.20972862]
[1761313547312,2.2163,3936.8,3936.4,8.04221]
[1761313547619,2.2163,3936.8,3936.7,3.2078]
[1761313548024,2.2163,3937.4,3936.8,0.45717]
[1761313548317,2.2163,3937.4,3936.7,3.2078]
[1761313548318,2.67341,3937.4,3936.7,3.2078]
[1761313548520,2.2163,3937.0,3936.8,10.831]
[1761313548720,2.2163,3937.0,3936.9,10.827]
[1761313548917,0.45712,3937.3,3936.7,3.2078]
[1761313548918,2.2163,3936.8,3936.7,3.2078]
[1761313549123,2.2163,3936.8,3936.7,12.2768]
[1761313549419,2.2163,3936.8,3936.7,3.2078]
[1761313549620,2.2163,3936.8,3936.7,11.0318]
[1761313549821,2.2163,3937.4,3936.7,16.0318]
[1761313550012,0.00304828,3937.6,3937.4,0.4571]
[1761313550210,2.2163,3938.2,3938.0,0.45702]
[1761313550409,2.2163,3938.2,3938.1,10.809]
[1761313550610,2.2163,3938.2,3938.0,3.2078]
[1761313550813,2.2163,3938.2,3938.1,10.803]
[1761313551215,2.2188899,3938.2,3938.1,10.803]
[1761313551622,2.2188899,3938.2,3938.0,3.66483]
[1761313552015,2.2188899,3938.2,3938.1,10.79]
[1761313553018,0.0025899,3938.2,3938.1,10.79]
[1761313553216,2.2149899,3938.2,3938.0,3.2078]
[1761313553421,2.2149899,3938.2,3938.1,10.771]
[1761313553925,2.2149899,3938.2,3938.1,10.773]
[1761313554218,2.2149899,3938.2,3938.0,3.2078]
[1761313554412,2.2149899,3938.2,3938.1,10.763]
[1761313555812,2.6719999,3938.2,3938.0,3.2078]
[1761313556121,2.2149899,3938.2,3938.1,10.76]
[1761313556425,2.2124,3937.7,3937.6,3.2078]
[1761313556725,2.2259,3937.4,3937.2,3.2078]
[1761313556924,2.68301,3937.4,3937.2,3.2078]
[1761313557125,3.2078,3937.8,3936.8,3.2078]
[1761313557126,4.35047,3937.8,3936.8,3.2078]
[1761313557317,2.2259,3936.4,3936.3,0.00192862]
[1761313559019,6.14307,3936.4,3935.1,3.2078]
[1761313559229,2.2259,3935.4,3935.2,6.825]
[1761313559724,2.68324,3935.4,3935.2,6.825]
[1761313559920,2.68326,3935.2,3934.5,3.2078]
[1761313560127,2.68619538,3935.2,3934.6,10.705]
[1761313560428,2.2259,3935.0,3934.5,3.21061467]
[1761313560626,2.2259,3934.6,3934.5,3.21061467]
[1761313560818,2.2259,3934.6,3934.5,0.00281467]
[1761313561124,3.21073538,3935.2,3934.5,8.38048734]
[1761313561125,0.00293538,3935.2,3934.5,8.38048734]
[1761313561320,2.22883538,3935.2,3935.1,3.2078]
[1761313561826,2.22883538,3935.2,3935.1,12.9048]
[1761313562325,2.22883538,3935.2,3935.1,13.9278]
[1761313562524,0.00293538,3935.2,3935.1,18.9278]
[1761313563118,0.00293538,3935.2,3935.1,11.45878654]
[1761313563325,0.00293538,3935.2,3934.7,3.2078]
[1761313563326,2.22883538,3935.2,3934.7,3.2078]
[1761313563624,2.22883538,3935.2,3934.7,3.66521]
[1761313563824,2.22883538,3935.2,3934.8,9.0334]
[1761313564023,2.22883538,3935.2,3934.7,3.2078]
[1761313564219,2.2259,3934.9,3934.8,10.578]
[1761313564424,2.2259,3934.9,3934.7,3.2078]
[1761313564621,2.6833,3934.9,3934.7,3.2078]
[1761313565013,2.6833,3934.9,3934.5,0.00281467]
[1761313565216,0.00293538,3935.2,3933.5,4.193]
[1761313565217,3.1522,3933.6,3933.5,4.193]
[1761313565421,2.2259,3933.3,3932.1,3.2078]
[1761313565619,2.2259,3933.3,3932.5,3.2078]
[1761313566017,3.2078,3934.0,3933.7,0.45753]
[1761313566223,3.2078,3934.0,3933.8,11.17352]
[1761313566427,0.9263,3934.7,3934.5,4e-05]
[1761313566629,2.2259,3933.4,3930.4,3.13851101]
[1761313566830,3.2078,3931.7,3930.0,14.0838]
[1761313567024,3.2078,3932.1,3931.6,0.45777]
[1761313567219,3.2078,3932.1,3931.7,10.882]
[1761313567427,3.2078,3932.1,3931.8,0.45774]
[1761313567624,3.2078,3932.1,3931.8,0.0030069]
[1761313567625,3.21029477,3932.1,3931.8,0.0030069]
[1761313568124,3.21029477,3932.1,3930.5,0.4578]
[1761313568125,5.0,3932.0,3931.4,7.102]
[1761313568321,0.45781,3931.4,3930.0,0.45795]
[1761313568525,3.2078,3931.0,3930.4,0.45791]
[1761313568720,3.2078,3931.4,3930.4,3.2078]
[1761313568931,3.2078,3931.9,3931.3,0.4578]
[1761313569119,3.2078,3931.9,3931.4,10.871]
[1761313569120,5.4337,3931.9,3931.4,10.871]
[1761313569427,0.00249477,3932.1,3932.0,0.4578]
[1761313569835,0.9263,3934.7,3932.9,0.45762]
[1761313569836,3.2078,3933.4,3932.9,0.45762]
[1761313570030,5.4337,3933.4,3933.0,10.876]
[1761313570226,5.0,3933.3,3932.5,3.2078]
[1761313570529,3.2078,3932.8,3932.6,6.494]
[1761313570730,3.2078,3932.8,3932.7,10.874]
[1761313571032,0.00328633,3932.8,3932.7,10.874]
[1761313571339,2.2259,3932.7,3932.5,3.2078]
[1761313571631,2.2259,3932.7,3932.6,7.695]
[1761313571929,0.00328633,3932.8,3931.4,18.3]
[1761313571930,2.2259,3932.5,3932.0,3.2078]
[1761313572124,2.2259,3932.5,3932.1,10.862]
[1761313572525,2.2259,3932.0,3931.6,3.2078]
[1761313572723,2.2259,3932.0,3931.7,10.852]
[1761313572922,0.00328633,3932.8,3932.6,0.91545]
[1761313573128,2.2259,3933.5,3932.9,0.45762]
[1761313573333,2.2259,3933.5,3931.7,22.77701622]
[1761313573334,2.2259,3933.3,3932.2,0.45771]
[1761313573537,2.2259,3933.2,3932.4,3.2078]
[1761313573720,7.2259,3933.2,3932.5,8.385]
[1761313573927,5.0,3933.1,3932.5,11.5928]
[1761313574126,5.00210478,3933.1,3932.9,0.45762]
[1761313574335,0.00210478,3933.1,3932.9,0.45762]
[1761313574525,2.2259,3934.1,3933.2,1.14395]
[1761313574729,1.14329,3935.6,3933.2,1.14395]
[1761313574730,5.0,3934.6,3933.9,3.2078]
[1761313574929,7.2259,3934.6,3934.4,0.45744]
[1761313575129,3.2078,3935.0,3934.7,0.45742]
[1761313575327,2.2259,3934.8,3934.5,0.45744]
[1761313575526,2.22889382,3934.8,3934.6,11.29942]
[1761313575821,0.00299382,3934.8,3934.6,11.29942]
[1761313576027,5.4337,3935.4,3934.6,11.98557]
[1761313576226,11.42779,3937.4,3934.6,11.98557]
[1761313576227,2.2259,3936.2,3936.1,0.45725]
[1761313576428,2.2259,3936.5,3936.3,0.45723]
[1761313576731,5.0,3936.8,3936.7,0.45718]
[1761313576929,7.2259,3936.8,3936.7,0.45718]
[1761313577129,5.00214538,3936.8,3936.7,0.45718]
[1761313577526,0.00214538,3936.8,3936.7,0.45718]
[1761313578630,2.2259,3936.7,3936.3,3.2078]
[1761313578836,2.2259,3936.7,3936.4,10.805]
[1761313579031,7.2259,3936.7,3936.4,10.805]
[1761313579226,2.22804538,3936.8,3936.6,0.45719]
[1761313580132,2.2259,3936.6,3936.5,10.798]
[1761313581035,2.2259,3936.6,3935.4,3.2078]
[1761313581235,7.2259,3936.5,3935.8,3.2078]
[1761313581432,0.00214538,3936.8,3936.6,0.45719]
[1761313581735,0.00214538,3936.8,3936.7,10.774]
[1761313582040,5.00214538,3936.8,3936.6,0.45719]
[1761313582229,5.0,3936.7,3935.7,3.2078]
[1761313582435,5.0,3936.7,3936.3,0.45723]
[1761313582638,3.5036,3936.7,3936.3,0.45723]
[1761313582935,3.5036,3936.7,3936.4,11.22221]
[1761313583140,5.0,3936.6,3936.4,11.22221]
[1761313583435,3.5036,3936.7,3936.5,0.4572]
[1761313583640,0.00214538,3936.8,3936.7,0.45719]
[1761313584341,0.00214538,3936.8,3936.7,3.13749]
[1761313585239,0.00214538,3936.8,3936.7,0.45719]
[1761313585735,0.00214538,3936.8,3936.7,3.13749]
[1761313585950,3.2078,3937.8,3936.7,2.6803]
[1761313586234,8.5036,3937.7,3937.5,0.45708]
[1761313586441,8.5036,3937.7,3937.6,10.737]
[1761313586628,5.0,3937.6,3937.3,10.728]
[1761313586829,6.7114,3937.4,3937.3,10.73005146]
[1761313587032,6.7114,3937.4,3937.3,0.00205146]
[1761313587231,3.5036,3936.6,3935.8,3.2078]
[1761313587435,6.7114,3936.4,3936.2,0.45724]
[1761313587745,3.2078,3936.4,3936.2,0.45724]
[1761313588333,6.7114,3936.8,3936.5,0.4572]
[1761313588536,6.7114,3936.8,3936.6,10.718]
[1761313589144,6.7114,3936.8,3936.6,11.1752]
[1761313589441,0.00249397,3937.6,3937.5,0.45709]
[1761313589640,1.33542251,3937.6,3937.5,11.15809]
[1761313590442,0.00249397,3937.6,3937.5,11.15809]
[1761313590843,0.00249397,3937.6,3937.5,13.83839]
[1761313591231,0.00249397,3937.6,3937.5,11.15809]
[1761313591535,0.4571,3937.4,3936.3,2.6803]
[1761313591838,3.5036,3936.6,3936.4,0.45722]
[1761313592038,3.5036,3936.6,3936.5,10.671]
[1761313592234,3.5036,3936.6,3936.4,0.45722]
[1761313592442,3.5036,3936.6,3936.5,10.666]
[1761313592635,4.83652854,3936.6,3936.2,0.00220424]
[1761313592841,0.00249397,3937.6,3936.2,0.00220424]
[1761313592842,6.7114,3936.3,3936.2,0.00220424]
[1761313593455,1.14522397,3937.6,3936.6,0.4572]
[1761313593456,3.2078,3936.7,3936.6,0.4572]